[Event "37th ECCC 2022"]
[Site "Mayrhofen"]
[Date "2022.10.04"]
[Round "2.20"]
[White "Saric, Ivan"]
[Black "Sulypa, Oleksandr"]
[Result "1-0"]
[ECO "C43"]
[WhiteElo "2668"]
[BlackElo "2463"]
[Annotator "TA"]
[PlyCount "113"]
[EventDate "2022.10.03"]
[EventType "team-tourn"]
[EventCountry "AUT"]
[SourceTitle "playchess.com"]
[Source "ChessBase"]
[SourceQuality "1"]
[TimeControl "40/5400+30:1800+30"]

{[%evp 14,113,8,0,0,0,0,-19,-4,-6,0,-15,0,0,0,0,0,-3,-18,-17,21,24,17,21,4,9,13,10,11,-16,70,57,74,68,67,84,132,139,164,161,156,94,172,170,387,171,172,172,172,169,170,99,102,111,104,106,117,107,214,213,198,215,218,157,208,215,215,205,514,514,1345,1300,574,1621,1397,1068,12825,12822,12832,12832,12833,12833,12836,12835,12837,12837,12837,12838,12838,12839,12839,12839,12839,12840,12840,12841,12841,12841,12842,12842,12842,12839]} 1. e4 {[%emt 0:00:03]} e5 {[%emt 0:00:05]} 2. Nf3 {[%emt 0:00:04]} Nf6 {[%emt 0:00:07]} 3. d4 {[%emt 0:00:51]} Nxe4 {[%emt 0:00:39]} 4. Bd3 {[%emt 0:00:05]} d5 {[%emt 0:00:06]} 5. Nxe5 {[%emt 0:00:03]} Nd7 {[%emt 0:00:28]} 6. Nc3 {[%emt 0:00:11]} Nxc3 {[%emt 0:02:27]} 7. bxc3 {[%emt 0:00:03]} Nxe5 {[%emt 0:00:06]} 8. dxe5 {[%emt 0:00:04]} Bc5 {[%emt 0:01:11] C43: Petroff Defence: 3 d4.} 9. O-O {[%emt 0:02:12]} O-O {[%emt 0:00:21] The main line 9...0-0 scores better than 9...Be6.} 10. Rb1 {[%emt 0:00:14]} Re8 {[%emt 0:06:22] The position is equal.} 11. Re1 {[%emt 0:00:45] [#]} b6 $146 {[%emt 0:09:45]} ({Predecessor:} 11... c6 12. Qf3 b6 13. h3 Qh4 14. Be3 Bxe3 15. Rxe3 Qg5 16. Qe2 c5 17. Rg3 Qf4 {½-½ (32) Abasov,N (2634)-Moussard,J (2632) Terme Catez 2021}) 12. h3 {[%emt 0:08:17]} Bd7 {[%emt 0:10:07]} 13. Qh5 {[%emt 0:08:38]} g6 {[%emt 0:00:49]} 14. Qf3 {[%emt 0:00:02]} Qh4 {[%emt 0:05:56]} 15. Be3 $132 {[%emt 0:03:39][%mdl 2048] White is not keeping still} Bxe3 {[%emt 0:23:44]} 16. Rxe3 {[%emt 0:01:24]} Qe7 {[%emt 0:11:55]} 17. Qxd5 {[%emt 0:01:23]} Be6 {[%emt 0:00:15]} 18. Qf3 {[%emt 0:03:11]} Bxa2 {[%emt 0:02:58]} 19. Ra1 {[%emt 0:00:03]} Qe6 {[%emt 0:00:40]} 20. Qf4 {[%emt 0:08:43] And now c4 would win.} Bd5 {[%emt 0:01:06]} 21. Qh6 {[%emt 0:01:56]} Bc4 {[%emt 0:06:09]} (21... a5 $11) 22. Ra4 $14 {[%emt 0:01:58]} b5 {[%emt 0:03:28]} 23. Bxc4 {[%emt 0:00:08]} bxc4 {[%emt 0:00:02]} 24. Re4 {[%emt 0:00:47]} Qd5 {[%emt 0:01:35]} ({Black should try} 24... Re7) 25. Rh4 $16 {[%emt 0:01:57] White is much more active.} (25. Raxc4 $6 Rxe5 26. Rh4 Rh5 27. Rxh5 Qxh5 28. Qxh5 gxh5 $11) 25... Qxe5 {[%emt 0:01:05]} 26. Qxh7+ {[%emt 0:00:03]} Kf8 {[%emt 0:00:07]} 27. Rhxc4 {[%emt 0:00:41]} (27. Raxc4 $142 {[%cal Oc4e4] Rce4! is the strong threat.} Qg7 28. Rxc7) 27... Rad8 {[%emt 0:07:59] [#]} (27... Red8 $16 28. f4 Qf6 29. Rxc7 Rd2) 28. Rf4 $1 $18 {[%emt 0:01:43][%csl Gh7][%cal Rf4f7]} Rd1+ {[%emt 0:01:45]} 29. Kh2 {[%emt 0:00:03][%csl Gf4][%cal Rh7f7] The board is on fire.} Qg7 {[%emt 0:01:35]} 30. Qxg7+ {[%emt 0:00:57]} Kxg7 {[%emt 0:00:01]} 31. Rxa7 {[%emt 0:00:13][%mdl 4096] Endgame KRR-KRR} Re7 {[%emt 0:00:06]} 32. Rc4 {[%emt 0:05:52]} (32. Rd4 $18 Rc1 33. Rd2) 32... Rd2 $16 {[%emt 0:00:41][%csl LRc2,LRf2]} 33. Kg3 {[%emt 0:00:12]} Ree2 {[%emt 0:00:20]} 34. Rf4 {[%emt 0:02:12]} ({But not} 34. Rcxc7 $6 Rxf2 35. Kh4 Kh6 36. Rxf7 g5+ 37. Kg3 Rxg2+ 38. Kf3 Rgf2+ 39. Ke4 Rfe2+ 40. Kf5 Rf2+ 41. Kg4 Rg2+ 42. Kf5 Rgf2+ 43. Ke5 Rfe2+ 44. Kf6 Rf2+ 45. Ke7 Rfe2+ 46. Kf6 Rf2+ 47. Ke5 Rfe2+ 48. Kf6 $11) 34... Re7 {[%emt 0:00:13]} 35. Ra2 {[%emt 0:01:39]} c5 {[%emt 0:02:03]} (35... Ree2 $16 36. h4 Kg8 37. Ra8+ Kg7) 36. Ra5 $18 {[%emt 0:05:16]} Rd5 {[%emt 0:00:04]} 37. h4 {[%emt 0:01:15][%cal Bh3h4,Bh4g5][%mdl 32]} Rh5 {[%emt 0:01:53]} 38. Rg4 {[%emt 0:03:24]} Rd5 {[%emt 0:00:32]} (38... Re2 $16 39. Rg5 Rxg5+ 40. hxg5 Re5) 39. c4 {[%emt 0:00:51]} Rde5 {[%emt 0:00:39]} 40. Rg5 {[%emt 0:01:01]} Rxg5+ $2 {[%emt 0:00:22]} (40... Re2 41. Raxc5 (41. Rgxc5 Rxc2 42. Ra3 Re4 $16) 41... Rxc2) 41. hxg5 {[%emt 0:30:04] KR-KR. White is clearly winning.} Re5 {[%emt 0:05:34]} (41... Rc7 $142 42. f4 Re7) 42. f4 {[%emt 0:00:00]} Re3+ {[%emt 0:02:18]} 43. Kg4 {[%emt 0:00:00]} Rc3 {[%emt 0:02:44]} 44. Rxc5 {[%emt 0:00:00] Hoping for Rc8.} Rxc2 {[%emt 0:00:03]} 45. Kf3 {[%emt 0:00:00]} Kf8 {[%emt 0:00:05]} 46. Rc7 {[%emt 0:00:00]} Rd2 {[%emt 0:00:57]} 47. c5 {[%emt 0:00:00][%cal Bc4c5,Bc5c6][%mdl 32]} Rc2 {[%emt 0:00:29]} 48. c6 {[%emt 0:00:00]} Rc4 {[%emt 0:02:37]} 49. g4 {[%emt 0:00:00]} Rc1 {[%emt 0:00:36] [#]} 50. f5 $1 {[%emt 0:00:00]} Rc4 {[%emt 0:00:19]} 51. Ke3 {[%emt 0:00:00]} Kg7 {[%emt 0:03:40]} 52. Rc8 {[%emt 0:00:00]} Rc1 {[%emt 0:02:09]} 53. Kd4 {[%emt 0:00:00]} Rd1+ {[%emt 0:00:18]} 54. Kc5 {[%emt 0:00:00]} Rc1+ {[%emt 0:00:05]} 55. Kd6 {[%emt 0:00:00]} Rd1+ {[%emt 0:00:30]} 56. Kc7 {[%emt 0:00:00]} Rc1 {[%emt 0:00:15]} 57. Rd8 {[%emt 0:00:00] Weighted Error Value: White=0.10 (very precise) /Black=0.26 (precise)} 1-0

[Event "37th ECCC 2022"]
[Site "Mayrhofen"]
[Date "2022.10.04"]
[Round "2.21"]
[White "Petursson, Margeir"]
[Black "Nihal Sarin"]
[Result "1/2-1/2"]
[ECO "A20"]
[WhiteElo "2447"]
[BlackElo "2673"]
[Annotator "TA"]
[PlyCount "59"]
[EventDate "2022.10.03"]
[EventType "team-tourn"]
[EventCountry "AUT"]
[SourceTitle "playchess.com"]
[Source "ChessBase"]
[SourceQuality "1"]
[TimeControl "40/5400+30:1800+30"]

{[%evp 10,59,33,0,11,11,31,19,16,0,0,0,0,0,55,27,56,-16,-26,0,-17,-29,-19,-12,0,-24,21,13,84,0,0,0,0,0,0,0,0,0,0,0,0,0,0,0,0,0,0,0,0,0,0,0]} 1. c4 {[%emt 0:00:04]} e5 {[%emt 0:00:24][%cal Be7e5,Be5e4][%mdl 32]} 2. g3 {[%emt 0:00:09]} c6 {[%emt 0:00:20]} 3. Nf3 {[%emt 0:01:12]} e4 {[%emt 0:00:11]} 4. Nd4 {[%emt 0:00:07]} d5 {[%emt 0:00:00]} 5. cxd5 Qxd5 6. e3 {[%emt 0:03:08]} Nf6 {[%emt 0:01:56] A20: English Opening: 1...e5.} 7. Bg2 {[%emt 0:02:03]} Bg4 {[%emt 0:11:44]} 8. Qc2 {[%emt 0:05:24]} (8. Nc3 $5 {[%cal Rc3d5]} Bxd1 9. Nxd5 cxd5 10. Kxd1 $11) 8... Na6 $1 {[%emt 0:13:23]} 9. a3 {[%emt 0:09:37] Against Nb4} Nc5 {[%emt 0:11:17]} 10. Nc3 {[%emt 0:14:24] [#]} Qh5 $146 {[%emt 0:29:41] [#] Hoping for ...Nd3+.} ({Predecessor:} 10... Qe5 11. O-O a5 12. Rb1 Rd8 13. b4 axb4 14. axb4 Nd3 15. Nxe4 Nxb4 16. Nxf6+ gxf6 17. Qa4 b5 18. Qa5 Bd7 19. Bb2 Qb8 20. Bc3 c5 21. Bxb4 cxd4 22. exd4 {1-0 (22) Cekro,E (2412)-Polard,G (2267) France 2006}) 11. h3 {[%emt 0:11:30]} Bf3 {[%emt 0:00:00]} ({Black should try} 11... Nd3+ $11 12. Kf1 Bf5) 12. Bxf3 $14 exf3 {[%emt 0:00:36]} 13. b4 {[%emt 0:16:09]} (13. Nf5 $1 $14) 13... Ne6 $11 {[%emt 0:06:23]} 14. Nf5 {[%cal Oc3e4,Bd4f5,Bf5g3,Bg3e4][%mdl 32]} g6 15. g4 {[%emt 0:06:40]} Qg5 {[%emt 0:00:33]} 16. Ng3 {[%emt 0:03:15]} Bg7 {[%emt 0:00:17]} (16... h5 {with more complications.} 17. Bb2 hxg4 18. Nge4 Nxe4 19. Nxe4 Qb5) 17. Bb2 {[%emt 0:01:16]} Qh4 {[%emt 0:00:38]} 18. Nce4 {[%emt 0:04:49]} O-O {[%emt 0:00:53][%cal Bh8f8,Bf8d8,Bd8d2,Bd2e2][%mdl 32]} (18... Nxe4 $11 {remains equal.} 19. Nxe4 O-O) 19. Nxf6+ {[%emt 0:04:36]} (19. Nd6 $16) 19... Bxf6 {[%emt 0:00:04] The position is equal.} 20. Ne4 {[%emt 0:00:53]} Bxb2 {[%emt 0:08:11]} 21. Qxb2 {[%emt 0:00:08]} Rfd8 {[%emt 0:00:21]} 22. Rg1 {[%emt 0:02:46]} Ng5 $1 {[%emt 0:07:39][%cal Be6g5,Bg5e4,Be4f2][%mdl 32]} (22... Qxh3 $2 23. O-O-O Kf8 24. Qh8+ Ke7 25. Qf6+ (25. Qe5 Qh6 $11) 25... Ke8 26. Rh1 (26. Rg3 Qh6 $16) 26... Qxg4 27. Rxh7 $18) 23. Qf6 {[%emt 0:06:58]} Nxe4 {[%emt 0:01:05]} 24. Qxh4 {[%emt 0:00:05]} Rxd2 {[%emt 0:00:03] [#] Threatens to win with ...Re2+.} 25. Qe7 {[%emt 0:03:31][%csl LRb7,LRe4]} Re2+ {[%emt 0:00:16]} 26. Kd1 {[%emt 0:00:04]} Nxf2+ {[%emt 0:00:07]} 27. Kc1 {[%emt 0:00:11] aiming for Qd7.} Nd3+ {[%emt 0:01:02]} 28. Kd1 {[%emt 0:00:12] Strongly threatening Qd7.} Nf2+ {[%emt 0:05:09]} 29. Kc1 {[%emt 0:00:08] And now Qd7 would win.} Nd3+ {[%emt 0:00:02]} 30. Kd1 {Weighted Error Value: White=0.11 (very precise) /Black=0.12 (very precise)} 1/2-1/2

[Event "37th ECCC 2022"]
[Site "Mayrhofen"]
[Date "2022.10.04"]
[Round "2.22"]
[White "Volokitin, Andrei"]
[Black "Thorhallsson, Throstur"]
[Result "1-0"]
[ECO "B56"]
[WhiteElo "2645"]
[BlackElo "2396"]
[Annotator "TA"]
[PlyCount "71"]
[EventDate "2022.10.03"]
[EventType "team-tourn"]
[EventCountry "AUT"]
[SourceTitle "playchess.com"]
[Source "ChessBase"]
[SourceQuality "1"]
[TimeControl "40/5400+30:1800+30"]

{[%evp 26,71,40,36,64,59,50,-18,21,37,67,10,14,23,18,16,61,48,35,47,25,31,82,75,105,68,84,73,87,75,141,14,168,152,674,693,941,941,1293,1166,1572,1135,1493,1392,5402,1604,5361,1624]} 1. e4 {[%emt 0:00:05]} c5 {[%emt 0:00:30]} 2. Nf3 {[%emt 0:00:06]} d6 {[%emt 0:00:19]} 3. d4 {[%emt 0:00:12]} cxd4 {[%emt 0:00:07]} 4. Nxd4 {[%emt 0:00:04]} Nf6 {[%emt 0:00:09]} 5. Nc3 {[%emt 0:00:04]} Nc6 {[%emt 0:00:33]} 6. f3 {[%emt 0:00:51]} e6 {[%emt 0:01:14]} 7. Be3 {[%emt 0:00:07]} Be7 {[%emt 0:01:03]} 8. Qd2 {[%emt 0:00:08]} O-O {[%emt 0:03:32]} 9. O-O-O {[%emt 0:00:06]} a6 {[%emt 0:01:20]} 10. g4 {[%emt 0:00:23]} Nxd4 {[%emt 0:02:37]} 11. Bxd4 {[%emt 0:02:17]} Nd7 {[%emt 0:01:29]} 12. h4 {[%emt 0:01:03][%cal Bh2h4,Bh4h5,Bh5g6][%mdl 32]} b5 {[%emt 0:01:35][%cal Bb7b5,Bb5b4][%mdl 32]} 13. g5 {[%emt 0:00:34]} b4 {[%emt 0:08:22]} 14. Na4 {[%emt 0:00:16]} Rb8 {[%emt 0:06:37] B80: Sicilian Scheveningen: 6 g3 and 6 Be3, including English Attack.} 15. Kb1 {[%emt 0:35:08]} Bb7 {[%emt 0:20:28] [#]} 16. g6 $146 {[%emt 0:06:29]} (16. b3 $14) ({Predecessor:} 16. b3 Nc5 17. Nb2 Qc7 18. h5 f5 19. Bh3 fxe4 20. h6 g6 21. Na4 Bc8 22. Nxc5 dxc5 {1-0 (42) Cheparinov,I (2671)-Hamdouchi,H (2590) Linares 2009}) 16... fxg6 {[%emt 0:05:40] The position is equal.} (16... Bc6 $5 {[%cal Rc6a4]} 17. gxh7+ Kh8 $11) 17. h5 {[%emt 0:02:07] Threatens to win with hxg6.} Bg5 (17... Rxf3 18. hxg6 h6 19. Bxg7 $1 $16) 18. Qg2 {[%emt 0:28:53]} (18. Qxb4 $14 Qe7 19. Ba7) 18... Qe7 {[%emt 0:18:03]} 19. hxg6 {[%emt 0:00:18]} h6 {[%emt 0:00:21]} 20. Bc4 {[%emt 0:02:36]} Rbc8 {[%emt 0:07:07]} 21. Bb3 {[%emt 0:04:39] White is much more active.} Bc6 {[%emt 0:05:01]} 22. Nb6 {[%emt 0:02:20]} Nxb6 {[%emt 0:01:25]} 23. Bxb6 {[%emt 0:00:01]} Bf4 {[%emt 0:03:44]} (23... d5 $1 $14) 24. Rh5 $16 {[%emt 0:03:18]} Kh8 {[%emt 0:02:42]} 25. Bf2 {[%emt 0:02:44]} Bb5 {[%emt 0:01:35]} 26. Bh4 $36 {[%emt 0:03:17][%mdl 2048] White has strong initiative.} Qe8 {[%emt 0:02:58] [#]} 27. Qg4 $1 {[%emt 0:00:07]} Be2 {[%emt 0:02:08] [#]} (27... Bd7 $142) 28. Rg1 {[%emt 0:03:22]} (28. Rh1 $1 $16) 28... d5 $2 {[%emt 0:02:17]} (28... Be3 $11 29. Rg3 Rc5) 29. Re1 {[%emt 0:02:21]} ({But not} 29. exd5 $6 Be3 30. dxe6 Bxf3 $14) 29... Bc4 {[%emt 0:01:28] Black cannot hold the game after this.} (29... Bxf3 $16 30. Qxf3 Bd2) 30. exd5 $18 {[%emt 0:00:08] White is clearly winning.} Bxb3 {[%emt 0:00:13]} 31. axb3 {[%emt 0:00:09]} e5 {[%emt 0:00:11]} 32. Rf5 {[%emt 0:01:13]} Qb5 {[%emt 0:00:46]} 33. Rxf8+ {[%emt 0:00:09]} Rxf8 {[%emt 0:00:01]} 34. d6 {[%emt 0:00:34] Strongly threatening d7.} Bd2 {[%emt 0:00:50]} 35. Rh1 {[%emt 0:00:27]} (35. Rd1 $142 Qe2 36. Rh1) 35... Be3 {[%emt 0:00:51]} 36. Be7 {[%emt 0:00:24] Weighted Error Value: White=0.20 (precise) /Black=0.58} 1-0

[Event "37th ECCC 2022"]
[Site "Mayrhofen"]
[Date "2022.10.04"]
[Round "2.23"]
[White "Johannesson, Ingvar Thor"]
[Black "Markus, Robert"]
[Result "0-1"]
[ECO "E95"]
[WhiteElo "2319"]
[BlackElo "2615"]
[Annotator "TA"]
[PlyCount "76"]
[EventDate "2022.10.03"]
[EventType "team-tourn"]
[EventCountry "AUT"]
[SourceTitle "playchess.com"]
[Source "ChessBase"]
[SourceQuality "1"]
[TimeControl "40/5400+30:1800+30"]

{[%evp 22,76,33,34,31,31,31,32,52,36,64,58,94,99,97,82,93,88,89,86,82,85,91,64,75,63,92,75,85,87,92,91,83,-20,-11,-59,-59,-330,-332,-486,-70,-90,-76,-76,-78,-476,-465,-460,-447,-758,-737,-1116,-1038,-29973,-29977,-5824,-5182]} 1. d4 {[%emt 0:00:02]} Nf6 {[%emt 0:00:07]} 2. Nf3 {[%emt 0:01:04]} d6 {[%emt 0:00:30]} 3. c4 {[%emt 0:00:09]} Nbd7 {[%emt 0:00:18]} 4. Nc3 {[%emt 0:00:06]} e5 {[%emt 0:00:23]} 5. e4 {[%emt 0:00:06]} g6 {[%emt 0:00:10]} 6. Be2 {[%emt 0:00:07]} Bg7 {[%emt 0:00:06]} 7. O-O {[%emt 0:00:06]} O-O {[%emt 0:00:06]} 8. Re1 {[%emt 0:01:31]} exd4 {[%emt 0:05:15]} 9. Nxd4 {[%emt 0:02:12]} Re8 {[%emt 0:00:07]} 10. Bf1 {[%emt 0:03:35]} c6 {[%emt 0:00:06] is now debated instead of 10...Nc5.} 11. Bf4 {[%emt 0:02:33]} Nc5 {[%emt 0:06:33]} 12. Qc2 {[%emt 0:02:12]} Nfd7 {[%emt 0:04:10] E95: King's Indian: Classical: 7...Nbd7 8 Re1.} 13. Be3 {[%emt 0:01:11]} a5 {[%emt 0:00:06]} 14. b3 {[%emt 0:00:37]} Ne5 {[%emt 0:07:32] [#] White is slightly better.} 15. h3 $146 {[%emt 0:04:02] Inhibits Ng4.} ({Predecessor:} 15. f3 b6 16. Rad1 Bb7 17. Qf2 Qe7 18. Qg3 Ned7 19. Bg5 Qf8 20. Qf2 Ne5 21. Rd2 {½-½ (28) Dugushov,S-Ribaudo,J (2084) ICCF email 2010}) 15... Qe7 {[%emt 0:04:48]} 16. Rad1 {[%emt 0:02:53]} f6 {[%emt 0:01:51]} 17. f4 {[%emt 0:16:43]} Nf7 {[%emt 0:00:06]} 18. Bf2 {[%emt 0:00:12]} Qf8 {[%emt 0:05:26]} 19. g3 {[%emt 0:20:09]} Nh6 {[%emt 0:17:07]} 20. Qd2 {[%emt 0:16:14]} f5 {[%emt 0:14:43] [#]} 21. exf5 $1 {[%emt 0:02:31]} Bxf5 {[%emt 0:00:06]} 22. Nxf5 {[%emt 0:06:16]} Nxf5 {[%emt 0:00:18]} 23. Bg2 {[%emt 0:09:07]} Ne6 {[%emt 0:08:34]} 24. Ne2 {[%emt 0:01:27]} h5 {[%emt 0:05:06]} 25. g4 {[%emt 0:00:58]} hxg4 {[%emt 0:00:06]} 26. hxg4 {[%emt 0:00:01]} Nh6 {[%emt 0:00:07]} 27. Qxd6 {[%emt 0:03:15]} ({White should try} 27. Bf3 $16) 27... Qf7 {[%emt 0:08:55] aiming for ...Red8.} 28. f5 {[%emt 0:02:09]} (28. Bb6 $11) 28... Nxg4 $15 {[%emt 0:00:49]} 29. Bh4 $2 {[%emt 0:01:29][%mdl 8192]} (29. Nf4 $15 Nxf4 30. Qxf4 Nxf2 31. Kxf2) 29... gxf5 $19 {[%emt 0:00:28]} 30. Nf4 {[%emt 0:01:32]} (30. Rf1 $142) 30... Nf8 $2 {[%emt 0:04:53]} (30... Bf8 $19 31. Rxe6 Bxd6 32. Rexd6 Ne5) 31. Nd5 {[%emt 0:00:37]} Ng6 {[%emt 0:00:25] Chess con chili.} (31... cxd5 $2 32. Bxd5 Ne6 33. Bxe6 Rxe6 34. Qxe6 $18) 32. Ne7+ {[%emt 0:00:52]} Nxe7 {[%emt 0:00:37]} 33. Bxe7 {[%emt 0:00:04][%mdl 8192] [#] This bishop pair is nice.} (33. Rxe7 $17 Rxe7 34. Qxe7) 33... Be5 $1 {[%emt 0:00:38][%mdl 512]} 34. Rxe5 {[%emt 0:00:28]} Nxe5 {[%emt 0:00:04]} 35. Bh4 {[%emt 0:00:43]} (35. Qxe5 $142 Rxe7 36. Qg3+ Qg7 37. Qxg7+ Kxg7 38. Kf2) 35... Re6 {[%emt 0:00:40]} 36. Qc5 {[%emt 0:00:23]} Qh5 {[%emt 0:01:14][%csl LRd1,LRh4]} 37. Rd4 {[%emt 0:00:45]} Nf3+ {[%emt 0:00:10]} 38. Bxf3 {[%emt 0:00:10]} Qxf3 {[%emt 0:00:05] Weighted Error Value: White=1.14/Black=0.28 (precise)} 0-1

[Event "37th ECCC 2022"]
[Site "Mayrhofen"]
[Date "2022.10.04"]
[Round "2.24"]
[White "Sebenik, Matej"]
[Black "Mai, Alexander Oliver"]
[Result "1-0"]
[ECO "A06"]
[WhiteElo "2518"]
[BlackElo "2183"]
[Annotator "TA"]
[PlyCount "47"]
[EventDate "2022.10.03"]
[EventType "team-tourn"]
[EventCountry "AUT"]
[SourceTitle "playchess.com"]
[Source "ChessBase"]
[SourceQuality "1"]
[TimeControl "40/5400+30:1800+30"]

{[%evp 9,47,21,16,17,14,16,22,6,22,0,35,34,37,35,70,73,64,68,70,64,106,62,138,108,112,95,113,112,146,100,206,212,1027,1017,1025,874,942,669,1537,1505]} 1. Nf3 {[%emt 0:00:06]} d5 {[%emt 0:00:07]} 2. g3 {[%emt 0:00:16]} c6 {[%emt 0:00:55]} 3. Bg2 {[%emt 0:00:11]} Bg4 {[%emt 0:00:07][%cal Bc8g4,Bg4h5,Bh5g6][%mdl 32]} 4. h3 {[%emt 0:00:45]} Bh5 {[%emt 0:00:52]} 5. O-O {[%emt 0:00:10]} Nd7 {[%emt 0:00:50]} 6. d4 {[%emt 0:00:22][%cal Oc2c4] Inhibits e5. A07: Réti Opening: New York and Capablanca Systems.} e6 {[%emt 0:01:33]} 7. c4 {[%emt 0:00:19]} Ngf6 {[%emt 0:02:20]} 8. cxd5 {[%emt 0:00:32] The position is equal.} exd5 {[%emt 0:02:04]} 9. Ne5 $1 {[%emt 0:00:25][%mdl 4] is currently scoring better than 9.Qb3.} Bg6 {[%emt 0:11:06]} 10. Nc3 {[%emt 0:01:26]} Nxe5 {[%emt 0:11:55]} 11. dxe5 {[%emt 0:00:08]} Ne4 {[%emt 0:00:36]} 12. Nxe4 {[%emt 0:01:25]} dxe4 {[%emt 0:10:55] [#]} 13. Qa4 $146 {[%emt 0:31:02]} ({Predecessor:} 13. Qb3 Qb6 14. Be3 Bc5 15. Bxc5 Qxc5 16. Qxb7 O-O 17. b4 Qxe5 18. Qxc6 Qb2 19. a3 {1-0 (96) Mahajan,R (2051)-Shivakumar,S (2140) Los Angeles 2022}) 13... Qd7 {[%emt 0:05:07]} 14. Kh2 {[%emt 0:16:53]} c5 {[%emt 0:05:19]} 15. Qc4 {[%emt 0:09:31]} Qd4 {[%emt 0:14:22]} (15... b5 $14 16. Qc2 Qd5) 16. Qb5+ {[%emt 0:00:12]} Qd7 {[%emt 0:00:24]} 17. a4 {[%emt 0:00:20] Threatens to win with f4.} O-O-O {[%emt 0:04:04]} 18. Bf4 {[%emt 0:12:39] White is more active.} Be7 {[%emt 0:02:54]} 19. Rfc1 {[%emt 0:00:24]} ({Better is} 19. b4) 19... Qd5 {[%emt 0:11:01]} (19... b6 $16 {keeps fighting.}) 20. b4 $18 {[%emt 0:02:03]} b6 $2 {[%emt 0:01:24]} (20... Qc6 21. bxc5 Rd5) 21. bxc5 {[%emt 0:02:44] White is clearly winning.} Bxc5 {[%emt 0:00:38] [#]} 22. Rxc5+ $1 {[%emt 0:06:37][%mdl 512]} bxc5 {[%emt 0:00:38]} 23. e6 {[%emt 0:01:27]} fxe6 {[%emt 0:06:13]} 24. Rc1 {[%emt 0:00:10] Weighted Error Value: White=0.43/Black=0.30} 1-0

[Event "37th ECCC 2022"]
[Site "Mayrhofen"]
[Date "2022.10.04"]
[Round "2.25"]
[White "Maghsoodloo, Parham"]
[Black "Mihok, Oliver"]
[Result "1-0"]
[ECO "E81"]
[WhiteElo "2721"]
[BlackElo "2545"]
[Annotator "TA"]
[PlyCount "81"]
[EventDate "2022.10.03"]
[EventType "team-tourn"]
[EventCountry "AUT"]
[SourceTitle "playchess.com"]
[Source "ChessBase"]
[SourceQuality "1"]
[TimeControl "40/5400+30:1800+30"]

{[%evp 12,81,35,30,31,24,25,34,30,18,20,0,0,0,0,0,0,0,0,-8,0,7,13,-7,25,15,4,0,0,0,0,0,0,0,-1,-13,0,0,0,10,0,0,26,33,45,47,133,130,139,140,333,330,333,330,610,564,595,560,760,756,689,614,1468,1405,1427,1394,1374,1339,12840,12840,12829,5810]} 1. d4 {[%emt 0:00:03]} Nf6 {[%emt 0:00:05]} 2. c4 {[%emt 0:00:03]} g6 {[%emt 0:00:05]} 3. Nc3 {[%emt 0:00:04]} Bg7 {[%emt 0:00:05]} 4. e4 {[%emt 0:00:05]} d6 {[%emt 0:00:06]} 5. f3 {[%emt 0:00:03]} O-O {[%emt 0:01:08]} 6. Be3 {[%emt 0:00:07]} a6 {[%emt 0:00:48]} 7. Nge2 {[%emt 0:08:09]} b5 {[%emt 0:01:34] E81: King's Indian: Sämisch: 6th move deviations (including 6 Be3 c6).} 8. cxb5 {[%emt 0:03:19]} axb5 {[%emt 0:00:05]} 9. Nxb5 {[%emt 0:00:02]} c6 {[%emt 0:01:10] White is slightly better.} 10. Nbc3 {[%emt 0:01:39]} Nbd7 {[%emt 0:00:30]} 11. Nc1 {[%emt 0:02:29]} e5 $1 {[%emt 0:01:45]} 12. Be2 {[%emt 0:03:03]} d5 {[%emt 0:09:56]} 13. exd5 {[%emt 0:12:54]} Nxd5 {[%emt 0:05:26]} 14. Nxd5 {[%emt 0:00:07]} cxd5 {[%emt 0:00:09]} 15. Nb3 {[%emt 0:01:12]} Re8 {[%emt 0:08:57]} 16. O-O {[%emt 0:01:16] [#]} Qb6 $146 {[%emt 0:11:15]} ({Predecessor:} 16... Nb6 17. dxe5 Bxe5 18. Bd4 Qd6 19. Bxe5 Qxe5 20. Bb5 Bd7 21. Bxd7 Nxd7 22. Qd4 Qd6 23. Rfd1 {½-½ (23) Vidarte Morales,A (2307)-Romero Pallares,D (2278) Zaragoza 2022}) 17. Re1 {[%emt 0:05:10]} Ra4 {[%emt 0:08:08]} 18. Bf2 {[%emt 0:04:28]} exd4 {[%emt 0:01:46]} 19. Bf1 {[%emt 0:02:05]} Rxe1 {[%emt 0:04:10]} 20. Qxe1 {[%emt 0:01:29] And now Qe8+ would win.} Nf8 $1 {[%emt 0:00:41]} 21. Qc1 {[%emt 0:01:14]} Bf5 {[%emt 0:10:03]} 22. Nc5 {[%emt 0:07:03][%cal Bb3c5,Bc5d3,Bd3e1,Be1c2,Bc2d4][%mdl 32]} Ra8 {[%emt 0:04:00]} 23. g4 {[%emt 0:12:36]} Bc8 {[%emt 0:03:40]} 24. a4 {[%emt 0:01:50]} Nd7 {[%emt 0:01:36]} 25. Nd3 {[%emt 0:02:35]} Ba6 {[%emt 0:02:20]} 26. a5 $36 {[%emt 0:00:06][%mdl 2048] White fights for an advantage.} Qd8 {[%emt 0:03:07]} 27. b4 {[%emt 0:02:12]} Rc8 {[%emt 0:07:38]} 28. Qd1 {[%emt 0:03:19]} Qe7 {[%emt 0:04:22] [#]} (28... Bc4 $14) 29. Rb1 $1 $16 {[%emt 0:03:58] Strongly threatening b5.} Bb5 {[%emt 0:00:57] [#]} 30. Ne1 $1 {[%emt 0:02:55]} ({Don't take} 30. Nf4 $6 Bxf1 31. Qxf1 Ne5 $14) 30... Rb8 {[%emt 0:03:32] Loses the game.} (30... Bxf1 $16 31. Kxf1 Ne5) 31. Bxb5 $18 {[%emt 0:02:22]} ({Weaker is} 31. Bxd4 Bxd4+ 32. Qxd4 Bxf1 33. Kxf1 Qd6 $16) 31... Rxb5 {[%emt 0:00:04]} 32. Nc2 {[%emt 0:04:22]} (32. Bxd4 Bxd4+ 33. Qxd4 Ne5 $16) 32... Ne5 $2 {[%emt 0:03:20]} (32... Qd6 33. Nxd4 (33. Bxd4 Be5 $18) 33... Rxb4 34. Rxb4 Qxb4) 33. Nxd4 {[%emt 0:02:38] White is clearly winning.} Rxb4 {[%emt 0:00:31]} 34. a6 {[%emt 0:00:06][%cal Ba5a6,Ba6a7][%mdl 32]} Bf8 {[%emt 0:02:00]} 35. Rxb4 {[%emt 0:05:15]} Qxb4 {[%emt 0:00:03]} 36. a7 {[%emt 0:00:04]} Qb7 {[%emt 0:01:33]} 37. Qa1 {[%emt 0:02:26]} Qa8 {[%emt 0:00:06]} 38. Nb5 {[%emt 0:01:34]} Nxf3+ {[%emt 0:00:43]} 39. Kh1 {[%emt 0:00:38] Black must now prevent Nc7.} Bd6 {[%emt 0:01:26] Prevents Nc7.} 40. Nxd6 {[%emt 0:00:21] White threatens Qb2 and mate.} d4 {[%emt 0:00:10]} 41. Qa6 {[%emt 0:31:05] Weighted Error Value: White=0.02 (flawless) /Black=0.29 (precise)} 1-0